bitfinex/quotes_SOLUSD_20260221
["timestamp","ask_amount","ask_price","bid_price","bid_amount"]
[1771682817116,104.4,85.81,85.722,0.48365028]
[1771682817312,4.18380784,85.77,85.731,0.48365028]
[1771682818308,11.65922419,85.769,85.733,0.48365028]
[1771682819318,0.48610924,85.768,85.733,0.48365028]
[1771682820617,0.48610924,85.768,85.735,0.48365028]
[1771682821536,0.48610924,85.766,85.735,0.48365028]
[1771682822222,0.48610924,85.766,85.721,29.16438212]
[1771682822223,0.48610924,85.759,85.722,12.43359018]
[1771682822422,0.48610924,85.759,85.723,0.28432314]
[1771682823607,0.48610924,85.759,85.725,0.28432314]
[1771682825223,0.48610924,85.759,85.726,11.66507244]
[1771682825523,0.48610924,85.759,85.727,0.28432314]
[1771682828128,0.4571214,85.749,85.711,0.46060943]
[1771682828315,0.4571214,85.749,85.618,46.71886916]
[1771682828316,0.4571214,85.749,85.713,0.46060943]
[1771682828923,0.4571214,85.749,85.712,11.66697778]
[1771682828924,0.4571214,85.749,85.718,0.14216157]
[1771682829133,0.4571214,85.749,85.718,0.28432314]
[1771682829506,0.4571214,85.749,85.718,0.14216157]
[1771682830306,0.4571214,85.749,85.714,0.14216157]
[1771682830507,0.4571214,85.749,85.716,0.28432314]
[1771682830733,0.47718253,85.739,85.713,0.47856485]
[1771682830934,0.47718253,85.739,85.712,11.66697778]
[1771682832330,0.47718253,85.739,85.712,12.14554263]
[1771682832841,0.47718253,85.739,85.713,0.47856485]
[1771682834738,0.47718253,85.739,85.715,0.47856485]
[1771682842643,0.47718253,85.749,85.717,0.47856485]
[1771682844735,11.66207958,85.748,85.717,0.47856485]
[1771682844943,0.47718253,85.747,85.717,0.47856485]
[1771682847538,0.47718253,85.739,85.704,0.47856485]
[1771682847739,40.81823058,85.746,85.699,0.47856485]
[1771682847740,0.47718253,85.729,85.699,0.47856485]
[1771682848729,0.47718253,85.727,85.692,0.47856485]
[1771682849248,0.47718253,85.719,85.692,0.47856485]
[1771682849742,0.47718253,85.719,85.69,0.2]
[1771682849743,0.47718253,85.709,85.69,0.2]
[1771682849944,0.47718253,85.709,85.691,0.47856485]
[1771682850737,0.47718253,85.709,85.69,0.2]
[1771682851456,0.47718253,85.709,85.69,0.67856485]
[1771682854237,0.47718253,85.709,85.691,0.47856485]
[1771682854948,0.47718253,85.716,85.691,0.47856485]
[1771682855753,0.47718253,85.714,85.691,0.47856485]
[1771682856956,0.47718253,85.72,85.693,0.47856485]
[1771682858637,0.4530053,85.719,85.695,0.47466797]
[1771682864076,0.4530053,85.719,85.696,11.66915608]
[1771682864462,0.4530053,85.719,85.696,12.14382405]
[1771682866662,4.18666259,85.71,85.691,0.47466797]
[1771682866873,0.4530053,85.709,85.691,0.47466797]
[1771682870264,11.66675372,85.714,85.691,0.47466797]
[1771682870467,0.4530053,85.713,85.691,0.47466797]
[1771682879874,0.4530053,85.709,85.69,0.2]
[1771682881180,0.4530053,85.709,85.691,0.47466797]
[1771682882387,0.4530053,85.714,85.691,12.14450494]
[1771682882557,29.16010926,85.734,85.701,0.47466797]
[1771682882558,0.4530053,85.732,85.701,0.47466797]
[1771682883177,0.4530053,85.732,85.703,0.47466797]
[1771682887483,0.4530053,85.732,85.704,11.66806683]
[1771682887676,0.4530053,85.732,85.705,0.47960377]
[1771682889277,0.48722826,85.73,85.705,0.47960377]
[1771682889480,0.48722826,85.729,85.705,0.47960377]
[1771682889784,0.48722826,85.729,85.707,0.47960377]
[1771682889981,0.47001843,85.759,85.711,0.48924408]
[1771682890167,0.47001843,85.749,85.711,0.48924408]
[1771682890364,0.47001843,85.747,85.711,0.48924408]
[1771682892478,0.47001843,85.747,85.721,0.48924408]
[1771682892686,0.47001843,85.753,85.721,0.48924408]
[1771682892873,0.47001843,85.749,85.712,11.66697778]
[1771682893075,0.47001843,85.739,85.712,11.66697778]
[1771682893379,0.47001843,85.739,85.695,0.48924408]
[1771682893575,0.47001843,85.739,85.69,4.38666259]
[1771682893576,0.47001843,85.739,85.697,0.48924408]
[1771682894480,0.47001843,85.737,85.698,0.48924408]
[1771682895186,0.47001843,85.737,85.701,0.48924408]
[1771682895771,0.47001843,85.737,85.707,0.48924408]
[1771682895979,0.47001843,85.737,85.711,0.48924408]
[1771682898089,0.47001843,85.737,85.713,0.48924408]
[1771682901087,0.47001843,85.737,85.715,0.48924408]
[1771682902672,0.47001843,85.737,85.709,0.48924408]
[1771682904990,0.47001843,85.737,85.71,11.66725002]
[1771682905194,0.47001843,85.737,85.711,0.48924408]
[1771682907695,0.47001843,85.737,85.713,0.48924408]
[1771682909801,0.47001843,85.737,85.715,0.48924408]
[1771682916884,0.47001843,85.747,85.717,0.48924408]
[1771682917102,58.28120871,85.791,85.726,0.48924408]
[1771682917103,4.65668102,85.76,85.726,0.48924408]
[1771682917284,0.47001843,85.759,85.726,0.48924408]
[1771682917802,0.47001843,85.759,85.731,0.4832476]
[1771682919398,0.47001843,85.759,85.733,0.4832476]
[1771682919706,0.47001843,85.759,85.725,0.14216157]
[1771682919707,0.47130221,85.749,85.725,11.66520789]
[1771682920090,0.47130221,85.749,85.726,0.4832476]
[1771682922608,0.47130221,85.749,85.728,0.4832476]
[1771682923637,0.47130221,85.749,85.689,3.69383402]
[1771682923638,0.47130221,85.739,85.71,0.4832476]
[1771682923914,0.47130221,85.739,85.712,0.4832476]
[1771682924503,0.47130221,85.739,85.714,0.4832476]
[1771682926894,0.47130221,85.739,85.713,11.66684166]
[1771682927292,0.47130221,85.739,85.713,12.15008926]
[1771682927692,0.47130221,85.739,85.714,0.4832476]
[1771682932622,0.47130221,85.739,85.715,11.66656944]
[1771682932832,0.47130221,85.739,85.716,0.4832476]
[1771682948120,0.47130221,85.739,85.711,0.47025512]
[1771682952130,0.47130221,85.739,85.713,0.46350051]
[1771682954241,0.47770647,85.775,85.737,0.46350051]
[1771682954445,0.47770647,85.775,85.741,0.46350051]
[1771682963745,0.47770647,85.769,85.741,0.46350051]
[1771682964634,0.47770647,85.759,85.729,0.46350051]
[1771682965540,0.47770647,85.759,85.73,0.46350051]
[1771682965847,0.47770647,85.759,85.732,0.46350051]
[1771682968650,0.47770647,85.759,85.734,0.46350051]
[1771682968955,29.14636136,85.774,85.741,0.46350051]
[1771682968956,0.47770647,85.774,85.741,0.46350051]
[1771682970942,0.47770647,85.774,85.751,0.46350051]
[1771682971842,0.47770647,85.785,85.761,0.46350051]
[1771682977355,0.47770647,85.8,85.771,0.46350051]
[1771682979544,0.47770647,85.8,85.773,0.48214994]
[1771682979744,0.48890788,85.789,85.754,0.28432314]
[1771682979947,0.48890788,85.779,85.755,0.28432314]
[1771682980261,0.48890788,85.779,85.755,0.76647308]
[1771682980857,0.48890788,85.779,85.751,11.66167158]
[1771682981160,0.48890788,85.779,85.751,12.14382152]
[1771682981361,0.48890788,85.779,85.752,0.48214994]
[1771682985261,0.48890788,85.779,85.753,12.14354954]
[1771682985459,0.48890788,85.779,85.753,11.6613996]
[1771682985643,0.48890788,85.779,85.754,0.48214994]
[1771682988161,0.48890788,85.785,85.756,0.48214994]
[1771682988950,0.48890788,85.785,85.761,0.48214994]
[1771682989151,11.65670166,85.788,85.761,0.48214994]
[1771682989352,11.65590323,85.794,85.761,0.48214994]
[1771682989663,12.14481111,85.794,85.771,0.48214994]
[1771682991365,0.48890788,85.805,85.781,0.48214994]
[1771682992448,0.48890788,85.805,85.782,0.48214994]
[1771682994178,0.48890788,85.805,85.782,12.13960721]
[1771682994352,0.48890788,85.805,85.783,0.48214994]
[1771682994553,0.48890788,85.799,85.765,0.48214994]
[1771682994754,29.1355064,85.806,85.765,0.48214994]
[1771682994755,0.48890788,85.789,85.765,0.48214994]
[1771682995363,0.48890788,85.799,85.771,0.48214994]
[1771682999278,0.48890788,85.799,85.771,12.14097874]
[1771683000264,0.48890788,85.799,85.772,0.48214994]
[1771683000858,0.48890788,85.799,85.771,11.6588288]
[1771683001059,0.48890788,85.799,85.772,0.48214994]
[1771683001260,0.48890788,85.799,85.773,11.65868047]
[1771683001976,0.48890788,85.789,85.751,12.14382152]
[1771683002174,0.48890788,85.789,85.752,0.48214994]
[1771683003472,11.65664195,85.788,85.753,11.6613996]
[1771683003672,0.48890788,85.787,85.754,0.48214994]
[1771683005263,0.48890788,85.787,85.721,5.36086188]
[1771683005264,0.48890788,85.769,85.73,4.18072115]
[1771683005478,0.48890788,85.779,85.741,0.48214994]
[1771683009582,0.48890788,85.779,85.74,4.18072115]
[1771683009583,0.48890788,85.779,85.747,0.48326569]
[1771683013687,0.48890788,85.779,85.749,0.48571279]
[1771683021975,0.48890788,85.779,85.751,0.48571279]
[1771683023797,0.45125818,85.779,85.753,0.48571279]
[1771683026717,0.45267168,85.777,85.741,11.66303168]
[1771683026896,0.45267168,85.777,85.742,0.48571279]
[1771683028801,4.18072115,85.77,85.742,0.48571279]
[1771683029007,0.45267168,85.769,85.742,0.48571279]
[1771683032806,0.45267168,85.767,85.732,11.6642545]
[1771683033014,11.65936013,85.768,85.721,11.66568407]
[1771683033015,0.45267168,85.749,85.721,11.66568407]
[1771683033799,0.45267168,85.749,85.722,0.48571279]
[1771683034012,0.45267168,85.759,85.722,0.48571279]
[1771683035700,0.45267168,85.757,85.724,0.48571279]
[1771683036295,0.45267168,85.757,85.713,0.48571279]
[1771683036495,0.45267168,85.749,85.713,0.48571279]
[1771683037798,0.49932818,85.747,85.714,0.45671311]
[1771683039708,11.66235159,85.746,85.714,0.45671311]
[1771683040009,0.49932818,85.745,85.714,0.45671311]
[1771683043894,0.49932818,85.743,85.714,0.45671311]
[1771683046818,12.15783319,85.775,85.737,0.45671311]
[1771683047109,12.15783319,85.775,85.736,0.28432314]
[1771683047110,0.49932818,85.774,85.741,0.45671311]
[1771683047798,0.49932818,85.772,85.743,0.45671311]
[1771683053022,4.18412521,85.77,85.743,0.45671311]
[1771683053197,0.49932818,85.769,85.743,0.45671311]
[1771683059913,11.65928171,85.769,85.743,0.45671311]
[1771683060110,0.49932818,85.768,85.743,0.45671311]
[1771683062929,11.65677783,85.787,85.751,0.45671311]
[1771683063131,0.49932818,85.797,85.761,0.45671311]
[1771683063828,0.49932818,85.802,85.771,0.45671311]
[1771683064421,0.49932818,85.799,85.771,0.45671311]
[1771683065415,0.49932818,85.799,85.772,12.1155295]
[1771683065615,0.49932818,85.799,85.773,0.45671311]
[1771683067935,0.48794586,85.779,85.747,0.46942375]
[1771683068434,0.48794586,85.789,85.751,0.46942375]
[1771683069333,4.18412521,85.81,85.781,0.46942375]
[1771683069539,0.48794586,85.809,85.781,0.46942375]
[1771683069919,0.45516421,85.807,85.781,0.46942375]
[1771683070939,0.45516421,85.799,85.773,0.46189186]
[1771683075334,0.45516421,85.799,85.768,0.46189186]
[1771683075529,0.45516421,85.789,85.756,11.66096214]
[1771683075837,0.45516421,85.789,85.761,0.46189186]
[1771683076021,11.65468601,85.803,85.767,0.46189186]
[1771683076220,0.45516421,85.802,85.767,0.46189186]
[1771683076627,0.45516421,85.799,85.76,4.64601707]
[1771683077339,11.65528333,85.798,85.761,12.12220365]
[1771683077541,0.45516421,85.797,85.761,12.12220365]
[1771683078240,0.45516421,85.806,85.781,0.46189186]
[1771683082245,0.45516421,85.804,85.769,0.46189186]
[1771683082440,0.45516421,85.804,85.766,0.46189186]
[1771683082748,0.45516421,85.804,85.771,0.46189186]
[1771683086142,0.45516421,85.802,85.771,12.12081767]
[1771683086723,0.45516421,85.802,85.772,0.46189186]
[1771683089265,0.45516421,85.8,85.772,0.46189186]
[1771683092855,0.45516421,85.8,85.761,29.15077949]
[1771683092856,0.45516421,85.779,85.731,0.46189186]
[1771683093151,0.45516421,85.789,85.761,0.46189186]
[1771683095054,0.45516421,85.803,85.778,0.46189186]
[1771683095352,0.45516421,85.803,85.771,0.46189186]
[1771683096951,0.45516421,85.801,85.771,0.46189186]
[1771683100854,11.65501165,85.8,85.771,0.46189186]
[1771683101063,0.49006494,85.799,85.771,0.46189186]
[1771683104941,0.49006494,85.797,85.771,0.46189186]
[1771683107548,0.49006494,85.795,85.771,0.46189186]
[1771683109065,0.49006494,85.8,85.773,0.48629598]
[1771683109271,0.49006494,85.8,85.781,0.48629598]
[1771683109479,0.49006494,85.808,85.781,0.48629598]
[1771683109772,0.49006494,85.808,85.78,4.17832521]
[1771683109773,0.49006494,85.808,85.783,0.48629598]
[1771683110751,0.49006494,85.806,85.771,0.48629598]
[1771683111976,0.49006494,85.804,85.773,0.48629598]
[1771683114282,0.49006494,85.804,85.775,0.48629598]
[1771683114774,0.49006494,85.804,85.781,0.48629598]
[1771683117172,4.17832521,85.82,85.78,4.17832521]
[1771683117173,0.49006494,85.818,85.783,0.48629598]
[1771683119266,11.65270284,85.817,85.784,11.65718548]
[1771683119456,0.49006494,85.816,85.785,0.48629598]
[1771683122761,12.14123206,85.829,85.787,0.48629598]
[1771683122958,12.14123206,85.829,85.786,11.65691371]
[1771683122959,0.49006494,85.828,85.801,0.48629598]
[1771683124076,0.49006494,85.828,85.803,0.48629598]
[1771683126793,33.40231221,85.84,85.811,0.48629598]
[1771683126794,0.49006494,85.838,85.811,0.48629598]
[1771683129154,0.49006494,85.838,85.812,11.65338181]
[1771683129474,0.1,85.84,85.796,0.45081075]
[1771683129475,0.45270475,85.829,85.796,0.45081075]
[1771683131283,0.45270475,85.829,85.798,0.49254952]
[1771683132778,0.45270475,85.829,85.801,0.49254952]
[1771683135469,0.45270475,85.829,85.802,11.65473998]
[1771683135780,0.45270475,85.829,85.803,0.49254952]
[1771683139981,0.49519555,85.827,85.803,0.49254952]
[1771683144364,0.49519555,85.827,85.801,11.65484652]
[1771683145278,4.17832521,85.83,85.797,0.49254952]
[1771683145279,0.49519555,85.825,85.797,0.49254952]
[1771683146766,0.49519555,85.823,85.797,0.49254952]
[1771683148370,0.49519555,85.821,85.797,0.49254952]
[1771683150491,0.49519555,85.819,85.792,0.49254952]
[1771683154272,0.49519555,85.819,85.793,11.6559626]
[1771683154473,0.49519555,85.819,85.794,0.49254952]
[1771683156176,0.49519555,85.819,85.796,0.49254952]
[1771683156491,0.49519555,85.818,85.796,0.49254952]
[1771683161083,0.49519555,85.818,85.798,0.48627816]
[1771683161982,0.1,85.84,85.8,0.48627816]
[1771683162188,0.1,85.84,85.82,4.17832521]
[1771683162391,0.1,85.84,85.821,0.48627816]
[1771683164280,0.56973859,85.84,85.821,0.48627816]
[1771683177298,0.1,85.84,85.823,0.48627816]
[1771683177811,0.1,85.85,85.831,0.48627816]
[1771683178912,0.1,85.86,85.833,0.48627816]
[1771683179217,0.56973859,85.86,85.833,0.48627816]
[1771683180089,4.27344092,85.87,85.855,0.48627816]
[1771683180090,0.1,85.87,85.855,0.48627816]
[1771683180286,0.46973859,85.884,85.861,0.48627816]
[1771683180486,0.46973859,85.884,85.871,0.48627816]
[1771683180707,0.46973859,85.879,85.842,0.48627816]
[1771683180898,0.46973859,85.877,85.843,12.13545165]
[1771683181099,0.46973859,85.877,85.844,0.48627816]
[1771683181711,0.46973859,85.859,85.831,0.48627816]
[1771683183502,0.46973859,85.857,85.831,0.48627816]
[1771683185520,11.64740961,85.856,85.823,0.48627816]
[1771683185726,0.46973859,85.855,85.823,0.48627816]
[1771683188024,0.46973859,85.855,85.825,0.46622837]
[1771683188194,0.45649752,85.865,85.841,0.46622837]
[1771683189722,0.45649752,85.864,85.841,0.46622837]
[1771683190424,0.45649752,85.864,85.843,0.49563801]
[1771683195314,0.45649752,85.864,85.844,11.64903778]
[1771683196221,0.49179502,85.859,85.832,0.49563801]
[1771683197017,0.49179502,85.859,85.834,0.49563801]
[1771683206817,0.49179502,85.859,85.833,11.65053068]
[1771683206818,0.49179502,85.849,85.802,0.49563801]
[1771683207029,0.49179502,85.839,85.802,0.49563801]
[1771683207341,0.49179502,85.839,85.811,0.49563801]
[1771683208039,0.49179502,85.839,85.813,0.49563801]
[1771683212153,0.49179502,85.838,85.813,0.49563801]
[1771683213857,0.49179502,85.829,85.802,0.49563801]
[1771683214137,0.49179502,85.829,85.804,0.49563801]
[1771683216950,0.49179502,85.833,85.806,0.49563801]
[1771683217438,4.17344092,85.84,85.81,4.17344092]
[1771683217637,0.49179502,85.839,85.811,0.49563801]
[1771683218624,0.49179502,85.839,85.812,0.4734119]
[1771683222657,0.48949126,85.837,85.797,0.4734119]
[1771683222947,0.48949126,85.829,85.797,0.4734119]
[1771683225144,0.48949126,85.829,85.799,0.4734119]
[1771683227153,0.48949126,85.829,85.768,5.36086188]
[1771683227154,0.48949126,85.819,85.787,0.4734119]
[1771683227737,0.48949126,85.819,85.791,0.4734119]
[1771683232740,0.48949126,85.832,85.801,0.4734119]
[1771683232933,0.48949126,85.832,85.811,0.4734119]
[1771683233687,0.48949126,85.836,85.811,0.4734119]
[1771683249566,0.47217396,85.819,85.781,0.49330481]
[1771683249769,0.47217396,85.809,85.781,0.49330481]
[1771683251656,0.46256538,85.799,85.781,0.49330481]
[1771683253273,11.65310894,85.815,85.783,0.46480817]
[1771683253473,12.11567432,85.815,85.783,0.46480817]
[1771683254391,0.46256538,85.814,85.791,0.46480817]
[1771683256178,11.65324601,85.813,85.791,0.46480817]
[1771683256371,0.46256538,85.813,85.792,0.46480817]
[1771683269686,0.46256538,85.799,85.762,0.46480817]
[1771683270192,0.46256538,85.799,85.766,0.46480817]
[1771683271598,0.46256538,85.807,85.773,0.46480817]
[1771683275001,0.46256538,85.805,85.773,0.46480817]
[1771683275999,0.46256538,85.803,85.773,0.46480817]
[1771683279301,0.47486834,85.819,85.786,0.45215094]
[1771683280600,0.47486834,85.819,85.788,0.45215094]
[1771683281500,0.47486834,85.819,85.791,0.45215094]
[1771683285298,0.47486834,85.819,85.793,0.45527303]
[1771683291106,0.47486834,85.819,85.774,29.14636136]
[1771683291107,4.17673019,85.8,85.764,0.45527303]
[1771683291312,0.4659104,85.799,85.771,0.45527303]
[1771683293105,0.4659104,85.799,85.761,11.66031179]
[1771683293291,0.4659104,85.797,85.762,0.45527303]
[1771683294807,4.17673019,85.79,85.762,0.45527303]
[1771683295011,0.4659104,85.789,85.762,0.45527303]
[1771683295713,0.4659104,85.789,85.763,11.66003987]
[1771683296410,0.4659104,85.789,85.763,12.1153129]
[1771683297213,0.4659104,85.789,85.764,0.45527303]
[1771683298897,0.4659104,85.789,85.751,0.28432314]
[1771683298898,0.4659104,85.789,85.766,0.45527303]
[1771683299096,0.4659104,85.802,85.771,0.45527303]
[1771683299702,0.4659104,85.814,85.791,0.45527303]
[1771683300218,29.12786746,85.829,85.771,0.45527303]
[1771683300219,0.4659104,85.809,85.771,0.45527303]
[1771683300395,0.4659104,85.809,85.775,0.45527303]
[1771683300902,0.4659104,85.809,85.781,0.45527303]
[1771683303509,0.4659104,85.807,85.775,0.45527303]
[1771683305127,0.4659104,85.799,85.766,0.45527303]
[1771683305828,0.4659104,85.797,85.762,11.66012549]
[1771683305998,0.4659104,85.779,85.741,11.66303168]
[1771683306200,0.4659104,85.769,85.734,0.45527303]
[1771683307412,0.4659104,85.767,85.734,0.45527303]
[1771683308619,4.17673019,85.76,85.734,0.45527303]
[1771683308818,0.46914133,85.759,85.724,11.66523362]
[1771683309209,0.46914133,85.759,85.72,4.17673019]
[1771683309408,0.46914133,85.759,85.731,12.13835213]
[1771683309823,0.46914133,85.759,85.731,0.47396002]
[1771683310019,0.46914133,85.759,85.726,11.6650355]
[1771683310202,0.46914133,85.759,85.721,12.16480853]
[1771683310403,0.48823175,85.749,85.721,12.16480853]
[1771683311098,40.80871207,85.766,85.705,29.16980343]
[1771683311099,0.48823175,85.739,85.715,12.16567209]
[1771683311301,0.48823175,85.739,85.716,0.49911244]
[1771683312798,29.14908005,85.766,85.715,11.66655965]
[1771683312799,0.28432314,85.789,85.731,0.49911244]
[1771683313004,0.48823175,85.767,85.731,0.49911244]
[1771683313701,4.17673019,85.76,85.731,0.49911244]
[1771683313899,0.48823175,85.759,85.731,0.49911244]
[1771683314513,11.66071969,85.758,85.731,0.49911244]
[1771683314704,0.48823175,85.757,85.731,0.49911244]
[1771683316020,0.48823175,85.749,85.724,0.49911244]
[1771683317224,0.48823175,85.739,85.715,0.49911244]
[1771683318517,0.48823175,85.729,85.702,0.49911244]
[1771683320232,0.48823175,85.729,85.704,0.49911244]
[1771683323526,0.48823175,85.737,85.706,0.49911244]
[1771683324028,0.48823175,85.729,85.706,0.49911244]
[1771683325829,0.48823175,85.729,85.707,11.66765841]
[1771683326036,0.48823175,85.729,85.707,12.16677085]
[1771683326247,0.48823175,85.729,85.708,0.49911244]
[1771683327422,0.48823175,85.729,85.703,0.49911244]
[1771683327628,0.48823175,85.729,85.7,0.2]
[1771683327824,0.48823175,85.729,85.7,0.69911244]
[1771683328715,4.17673019,85.72,85.7,0.69911244]
[1771683328912,0.48823175,85.727,85.7,0.69911244]
[1771683330028,4.17673019,85.72,85.7,0.69911244]
[1771683330236,0.48823175,85.719,85.7,0.69911244]
[1771683331718,0.48823175,85.719,85.702,0.49911244]
[1771683331946,0.48823175,85.724,85.702,0.49911244]
[1771683336229,4.17673019,85.72,85.702,0.49911244]
[1771683337034,4.17673019,85.72,85.702,0.46144016]
[1771683337435,0.48823175,85.724,85.702,0.46144016]
[1771683338242,0.48823175,85.724,85.703,11.66820298]
[1771683338550,0.48823175,85.724,85.7,0.2]
[1771683339157,0.48823175,85.724,85.701,0.49293624]
[1771683339948,4.17673019,85.74,85.703,0.49293624]
[1771683340253,0.45747384,85.739,85.703,0.49293624]
[1771683344754,11.66341727,85.739,85.711,0.49293624]
[1771683345166,0.45747384,85.747,85.711,0.49293624]
[1771683346335,4.63420403,85.77,85.731,0.49293624]
[1771683346541,0.45747384,85.769,85.731,0.49293624]
[1771683346867,0.45747384,85.769,85.73,4.17673019]
[1771683346868,0.45747384,85.767,85.733,0.49293624]
[1771683348540,0.45747384,85.749,85.726,11.66499308]
[1771683348756,0.45747384,85.749,85.723,0.49293624]
[1771683349261,4.17673019,85.74,85.717,0.49293624]
[1771683349562,0.45747384,85.739,85.717,0.49293624]
[1771683353148,0.45747384,85.746,85.719,0.49293624]
[1771683362374,0.45747384,85.751,85.721,0.49293624]
[1771683364874,0.45747384,85.751,85.723,0.49293624]
[1771683366572,11.66090323,85.757,85.722,11.66561676]
[1771683366573,0.45747384,85.772,85.741,0.49293624]
[1771683366868,0.45747384,85.777,85.743,0.49293624]
[1771683369459,0.49097514,85.776,85.745,0.48483762]
[1771683378479,0.48894251,85.769,85.745,0.48483762]
[1771683378979,0.48894251,85.769,85.746,11.66235159]
[1771683379180,0.48894251,85.769,85.747,0.46119143]
[1771683386494,0.48894251,85.769,85.749,0.46119143]
[1771683394402,4.18463768,85.82,85.771,0.46119143]
[1771683394704,33.31539513,85.82,85.771,0.46119143]
[1771683395398,4.18463768,85.81,85.771,0.46119143]
[1771683396406,0.22977528,85.807,85.773,0.46119143]
[1771683398109,4.18463768,85.8,85.773,0.46119143]
[1771683399611,4.18463768,85.8,85.775,0.46018888]
[1771683400611,0.22977528,85.804,85.777,0.46018888]
[1771683402019,0.22977528,85.803,85.777,0.46018888]
[1771683408111,0.1,85.83,85.767,11.65948242]
[1771683408112,0.22977528,85.789,85.767,11.65948242]
[1771683408518,0.22977528,85.789,85.767,12.1196713]
[1771683408725,0.22977528,85.789,85.767,11.65948242]
[1771683409131,0.22977528,85.789,85.768,0.46018888]
[1771683410228,0.22977528,85.789,85.77,0.46018888]
[1771683410417,0.22977528,85.799,85.77,0.46018888]
[1771683410618,0.22977528,85.798,85.77,0.46018888]
[1771683412229,0.22977528,85.796,85.77,0.46018888]
[1771683421042,0.46970583,85.794,85.757,11.66083818]
[1771683421544,0.46970583,85.789,85.752,11.66145773]
[1771683422636,0.46970583,85.787,85.75,4.17896995]
[1771683423149,0.46970583,85.787,85.751,0.46018888]
[1771683424731,0.46970583,85.785,85.753,0.46018888]
[1771683429854,0.46970583,85.785,85.741,29.15724383]
[1771683429855,0.49459032,85.769,85.733,0.47670589]
[1771683430039,0.49459032,85.769,85.741,0.47670589]
[1771683431469,0.49459032,85.769,85.731,0.47670589]
[1771683432237,0.49459032,85.759,85.731,0.47670589]
[1771683433245,0.49459032,85.749,85.731,0.47670589]
[1771683433451,0.49459032,85.759,85.733,0.47670589]
[1771683434660,0.49459032,85.757,85.733,0.47670589]
[1771683445461,0.49459032,85.755,85.733,0.47670589]
[1771683450564,0.49459032,85.77,85.741,0.47670589]
[1771683450769,0.49459032,85.777,85.751,0.47670589]
[1771683458369,0.4830676,85.795,85.761,0.45096412]
[1771683461469,0.4830676,85.793,85.761,0.45096412]
[1771683462670,0.4830676,85.809,85.771,0.45096412]
[1771683462968,0.4830676,85.808,85.781,0.45096412]
[1771683464670,0.4830676,85.808,85.781,11.65749783]
[1771683464888,11.65378922,85.809,85.781,11.65749783]
[1771683464889,11.65378922,85.809,85.782,0.45096412]
[1771683465184,0.4830676,85.808,85.782,0.45096412]
[1771683466374,0.4830676,85.789,85.751,0.45096412]
[1771683466565,0.4830676,85.779,85.751,0.45096412]
[1771683467474,4.17896995,85.8,85.76,4.17896995]
[1771683467475,0.4830676,85.794,85.76,4.17896995]
[1771683467776,0.4830676,85.794,85.761,0.45096412]
[1771683469875,11.65539389,85.798,85.77,4.17896995]
[1771683470075,11.65539389,85.798,85.771,0.45096412]
[1771683470777,12.13846149,85.798,85.771,0.45096412]
[1771683474870,0.4830676,85.803,85.773,0.45096412]
[1771683475074,0.4830676,85.807,85.773,0.45096412]
[1771683475275,0.4830676,85.807,85.781,0.45096412]
[1771683477871,0.4830676,85.812,85.781,0.45096412]
[1771683480068,0.4830676,85.81,85.781,0.45096412]
[1771683482588,11.65351761,85.811,85.783,0.45096412]
[1771683482890,0.4830676,85.809,85.791,0.45096412]
[1771683483091,0.4830676,85.799,85.77,4.17845856]
[1771683484575,0.4830676,85.799,85.772,11.65872854]
[1771683485180,0.4830676,85.799,85.773,0.45096412]
[1771683486088,0.4830676,85.799,85.774,11.65854454]
[1771683486288,0.4830676,85.799,85.775,0.45096412]
[1771683490304,0.48079935,85.797,85.77,0.45013206]
[1771683491982,0.48079935,85.797,85.772,0.45013206]
[1771683492885,0.48079935,85.795,85.772,0.45013206]
[1771683494379,0.48079935,85.793,85.772,0.45013206]
[1771683494903,0.48079935,85.789,85.764,0.45013206]
[1771683497196,0.48079935,85.779,85.759,0.45013206]
[1771683497386,0.48079935,85.779,85.741,0.45013206]
[1771683498599,0.48079935,85.777,85.746,0.45013206]
[1771683504700,0.48079935,85.782,85.751,0.45013206]
[1771683509805,4.17845856,85.78,85.751,0.45013206]
[1771683510110,0.48079935,85.779,85.751,0.45013206]
[1771683510809,0.48079935,85.779,85.752,0.45013206]
[1771683513407,0.48079935,85.784,85.752,0.45013206]
[1771683514311,0.48079935,85.784,85.754,0.45013206]
[1771683515096,12.13730542,85.789,85.754,0.45013206]
[1771683515397,11.6552193,85.799,85.763,0.45013206]
[1771683515600,12.13601865,85.799,85.763,0.45013206]
[1771683515797,0.48079935,85.798,85.763,0.45013206]
[1771683518605,11.6552193,85.799,85.765,0.45587415]
[1771683518918,0.47992663,85.799,85.765,0.45587415]
[1771683521713,0.47992663,85.789,85.767,0.45587415]
[1771683522622,0.47992663,85.779,85.758,11.66063014]
[1771683523308,0.47992663,85.779,85.758,12.11650429]
[1771683523622,0.47992663,85.779,85.759,0.45587415]
[1771683524297,0.47992663,85.779,85.754,0.45587415]
[1771683524500,0.47992663,85.769,85.743,0.45587415]
[1771683528033,0.47992663,85.769,85.741,29.15737949]
[1771683529125,0.47992663,85.769,85.742,0.45587415]
[1771683530233,0.47992663,85.759,85.714,0.45587415]
[1771683530530,0.47992663,85.759,85.721,0.45587415]
[1771683531131,12.13854456,85.774,85.731,0.45587415]
[1771683531328,0.47992663,85.769,85.731,0.45587415]